bitfinex/quotes_SOLUSD_20251103
["timestamp","ask_amount","ask_price","bid_price","bid_amount"]
[1762194138520,0.2,169.63,169.62,20.592]
[1762194140025,0.2,169.63,169.59,20.63800931]
[1762194140254,0.87,169.63,169.59,53.37000931]
[1762194140795,0.67,169.62,169.59,5.89657409]
[1762194141629,0.2,169.63,169.59,5.89657409]
[1762194141839,0.87,169.63,169.59,20.63800931]
[1762194142228,0.67,169.62,169.57,20.64044347]
[1762194142410,0.2,169.63,169.57,20.64044347]
[1762194143529,0.2,169.63,169.6,20.592]
[1762194144209,0.2,169.63,169.61,5.89587878]
[1762194144720,0.2,169.63,169.62,12.14]
[1762194145028,0.87,169.63,169.61,5.89587878]
[1762194145429,0.2,169.63,169.61,5.89587878]
[1762194146418,0.2,169.63,169.62,12.14]
[1762194148018,0.2,169.63,169.61,18.03587878]
[1762194149332,1e-08,169.63,169.61,18.03587878]
[1762194149539,1e-08,169.64,169.63,0.14216157]
[1762194149725,1e-08,169.64,169.63,42.66298926]
[1762194149913,1e-08,169.64,169.63,22.07098926]
[1762194150243,1e-08,169.64,169.63,27.96617289]
[1762194150447,1e-08,169.66,169.65,20.592]
[1762194150614,1e-08,169.67,169.66,30.52298926]
[1762194150817,1e-08,169.69,169.66,30.52298926]
[1762194151033,1e-08,169.69,169.67,12.14]
[1762194151249,0.2,169.74,169.7,20.592]
[1762194151533,0.2,169.74,169.71,20.592]
[1762194151736,0.66,169.73,169.71,20.592]
[1762194152327,0.2,169.74,169.71,20.592]
[1762194152328,0.2,169.74,169.71,38.62440469]
[1762194153024,0.2,169.74,169.71,26.48440469]
[1762194153351,0.2,169.74,169.71,38.62440469]
[1762194153519,0.88,169.74,169.71,5.89240469]
[1762194153714,0.2,169.74,169.71,5.89240469]
[1762194153944,4.74335656,169.72,169.68,20.592]
[1762194154237,4.54335656,169.71,169.68,20.592]
[1762194154434,3.86335656,169.7,169.67,18.03373314]
[1762194154636,3.86335656,169.69,169.67,5.89373314]
[1762194154836,0.2,169.72,169.67,5.89373314]
[1762194155041,0.68,169.7,169.66,5.89412603]
[1762194155229,3.8626088,169.69,169.66,5.89412603]
[1762194155541,3.8626088,169.68,169.66,5.89412603]
[1762194155737,0.68,169.69,169.66,5.89412603]
[1762194155938,3.86447207,169.68,169.65,20.63056716]
[1762194156243,0.68,169.69,169.65,20.63056716]
[1762194156442,3.86645452,169.68,169.65,20.63056716]
[1762194156624,0.68,169.69,169.65,20.63056716]
[1762194156824,3.86645452,169.68,169.65,20.63056716]
[1762194157022,0.68,169.69,169.65,20.63056716]
[1762194157223,4.54640942,169.68,169.65,5.89448865]
[1762194157548,3.86640942,169.67,169.65,5.89448865]
[1762194157733,3.86640942,169.66,169.65,5.89448865]
[1762194160333,4.54640942,169.66,169.64,5.89482583]
[1762194160640,4.54640942,169.65,169.62,5.89553118]
[1762194160842,3.86640942,169.64,169.62,5.89553118]
[1762194161141,3.86640942,169.63,169.62,5.89553118]
[1762194161926,3.86640942,169.63,169.62,18.01553118]
[1762194162249,4.54640942,169.63,169.62,5.89553118]
[1762194162840,9.37955833,169.63,169.6,5.89588913]
[1762194163148,8.69955833,169.62,169.6,5.89588913]
[1762194163350,3.86640942,169.61,169.6,5.89588913]
[1762194164343,9.37955833,169.61,169.59,20.63789312]
[1762194164548,3.86640942,169.6,169.59,20.63789312]
[1762194165259,4.83314891,169.65,169.63,20.592]
[1762194165422,4.83314891,169.65,169.6,9.78882769]
[1762194165423,4.83314891,169.66,169.64,12.12]
[1762194165627,4.83314891,169.67,169.64,32.732]
[1762194166043,5.51314891,169.7,169.64,32.732]
[1762194166243,0.68,169.69,169.65,20.63071028]
[1762194167352,5.51314891,169.69,169.65,20.63071028]
[1762194167740,4.83314891,169.69,169.65,20.63071028]
[1762194168053,0.68,169.68,169.67,20.592]
[1762194168344,0.68,169.68,169.67,26.48579383]
[1762194168942,5.51314891,169.7,169.67,41.22027841]
[1762194169143,0.68,169.69,169.67,41.22027841]
[1762194169734,0.88,169.72,169.67,41.22027841]
[1762194170150,0.68,169.71,169.67,41.22027841]
[1762194171057,0.68,169.71,169.67,26.48579383]
[1762194171357,4.83314891,169.68,169.62,5.89553118]
[1762194171561,0.68,169.67,169.62,26.48753118]
[1762194171964,5.51314891,169.69,169.63,26.85772039]
[1762194172463,0.68,169.68,169.63,26.85772039]
[1762194173166,0.68,169.68,169.63,32.75290402]
[1762194175176,5.51314891,169.68,169.63,32.75290402]
[1762194175766,0.68,169.67,169.63,32.75290402]
[1762194176261,5.51314891,169.69,169.63,32.75290402]
[1762194176571,4.83314891,169.7,169.63,112.22882219]
[1762194176774,4.83314891,169.71,169.66,20.592]
[1762194176947,0.68,169.7,169.66,20.592]
[1762194177151,3.93037311,169.69,169.67,5.89379383]
[1762194177461,3.93037311,169.68,169.67,5.89379383]
[1762194179574,4.61037311,169.68,169.67,5.89379383]
[1762194180651,4.61063646,169.68,169.67,5.89379383]
[1762194181172,4.61063646,169.68,169.66,5.89406441]
[1762194181347,0.68,169.67,169.65,5.89440837]
[1762194183173,0.68,169.67,169.64,20.63129446]
[1762194183751,0.68,169.67,169.64,5.89483612]
[1762194184262,4.81871055,169.65,169.57,5.89726956]
[1762194184463,29.33648258,169.64,169.56,18.01751119]
[1762194184673,4.81871055,169.59,169.5,5.89970501]
[1762194184856,4.81871055,169.57,169.5,5.89970501]
[1762194185054,3.92577203,169.56,169.5,5.89970501]
[1762194185256,5.50871055,169.56,169.5,5.89970501]
[1762194185463,9.43037073,169.55,169.5,5.89970501]
[1762194185665,3.92166018,169.54,169.5,5.89970501]
[1762194185876,3.92166018,169.53,169.5,5.89970501]
[1762194186079,3.92166018,169.53,169.47,20.692]
[1762194186080,4.81871055,169.52,169.48,5.90025383]
[1762194186259,4.81871055,169.52,169.47,0.1]
[1762194186260,12.81,169.52,169.47,6.00071531]
[1762194186456,0.69,169.51,169.47,0.1]
[1762194186657,0.69,169.51,169.47,6.00059744]
[1762194187368,0.69,169.51,169.47,20.75247092]
[1762194190049,0.69,169.51,169.47,6.00059744]
[1762194191270,0.69,169.51,169.47,20.75247092]
[1762194191460,0.69,169.51,169.47,6.00059744]
[1762194192888,0.69,169.51,169.47,0.1]
[1762194193088,0.69,169.51,169.47,6.00063706]
[1762194195888,6.58940242,169.51,169.47,6.00063706]
[1762194196084,11.40811297,169.51,169.47,0.1]
[1762194196269,0.69,169.5,169.47,0.1]
[1762194196471,11.40854002,169.5,169.47,0.1]
[1762194196982,4.81871055,169.48,169.47,0.1]
[1762194197282,12.14,169.48,169.47,0.1]
[1762194197472,12.83,169.48,169.47,0.1]
[1762194199154,18.73040122,169.48,169.47,0.1]
[1762194199362,17.64871055,169.48,169.47,0.1]
[1762194199680,23.54911177,169.48,169.47,0.1]
[1762194200987,12.83,169.48,169.47,0.1]
[1762194201186,23.54911177,169.48,169.47,0.1]
[1762194201486,38.30011483,169.48,169.43,0.1]
[1762194201703,4.81871055,169.44,169.34,5.90527931]
[1762194202002,4.81871055,169.4,169.34,5.90527931]
[1762194202178,16.95871055,169.39,169.34,5.90527931]
[1762194202374,12.14,169.38,169.34,20.6684776]
[1762194202583,12.14,169.37,169.32,26.49797684]
[1762194202982,12.14,169.37,169.33,0.2]
[1762194204574,12.14,169.37,169.34,20.6684776]
[1762194206675,12.14,169.37,169.34,14.76319829]
[1762194209901,0.69,169.42,169.35,0.2]
[1762194210871,4.81871055,169.41,169.34,14.76319829]
[1762194211376,0.69,169.4,169.34,14.76319829]
[1762194211691,12.83,169.42,169.35,9.98882769]
[1762194212204,12.83,169.42,169.36,20.66603683]
[1762194212372,5.50871055,169.41,169.36,20.66603683]
[1762194212872,0.7,169.4,169.36,20.66603683]
[1762194213074,5.51871055,169.4,169.36,5.90458195]
[1762194213503,0.7,169.39,169.36,5.90458195]
[1762194214078,0.7,169.39,169.34,14.76308322]
[1762194214279,0.7,169.39,169.34,14.96308322]
[1762194214474,0.7,169.39,169.34,14.76308322]
[1762194215096,12.14,169.38,169.34,14.76308322]
[1762194215692,12.84,169.38,169.34,14.76308322]
[1762194216493,0.7,169.38,169.34,14.76308322]
[1762194217203,12.14,169.39,169.34,14.96308322]
[1762194217412,25.55287212,169.43,169.34,14.76308322]
[1762194217582,0.7,169.41,169.35,0.2]
[1762194217900,0.7,169.41,169.34,14.76308322]
[1762194218286,3.85581727,169.4,169.34,14.76308322]
[1762194218503,0.7,169.41,169.34,14.76308322]
[1762194218702,3.85588646,169.4,169.34,14.76308322]
[1762194218894,0.7,169.41,169.34,14.76308322]
[1762194219095,3.85777788,169.4,169.34,14.76308322]
[1762194219303,0.7,169.41,169.34,14.76308322]
[1762194219600,3.85784689,169.4,169.34,14.76308322]
[1762194219808,0.7,169.41,169.34,14.76308322]
[1762194219999,3.85788512,169.4,169.34,14.76308322]
[1762194220196,3.85788512,169.39,169.34,14.76308322]
[1762194220395,12.14,169.38,169.34,14.76308322]
[1762194220906,0.7,169.37,169.34,14.76308322]
[1762194222810,0.7,169.4,169.34,14.96308322]
[1762194223107,12.14,169.38,169.34,14.76308322]
[1762194223278,3.8656418,169.37,169.34,14.76308322]
[1762194223484,3.8656418,169.36,169.34,14.76308322]
[1762194223706,12.84,169.38,169.34,14.76308322]
[1762194223893,3.86869966,169.37,169.34,14.76308322]
[1762194224202,3.87334865,169.36,169.34,14.76308322]
[1762194224414,12.84,169.38,169.34,14.76308322]
[1762194224707,3.87363099,169.37,169.34,14.76308322]
[1762194224894,3.87363099,169.36,169.34,14.76308322]
[1762194225205,0.7,169.38,169.34,14.76308322]
[1762194225384,3.8738937,169.37,169.33,5.90562806]
[1762194225584,3.8738937,169.36,169.31,0.1]
[1762194225780,3.8738937,169.35,169.31,6.00625328]
[1762194225994,3.8738937,169.34,169.31,20.77206746]
[1762194226204,0.7,169.37,169.31,20.77206746]
[1762194226420,3.87377368,169.36,169.31,20.77206746]
[1762194226588,3.87377368,169.35,169.31,20.97206746]
[1762194226917,3.87377368,169.34,169.31,20.97206746]
[1762194227218,5.61329558,169.38,169.32,0.2]
[1762194227383,8.79732371,169.37,169.32,0.2]
[1762194227582,3.88402813,169.36,169.31,70.89569583]
[1762194227785,3.88402813,169.35,169.31,70.89569583]
[1762194227987,3.88402813,169.34,169.31,70.89569583]
[1762194228186,3.88402813,169.33,169.31,70.89569583]
[1762194228403,17.05329558,169.38,169.32,0.2]
[1762194228601,8.80277491,169.37,169.33,20.66969821]
[1762194228809,3.88947933,169.36,169.33,20.66969821]
[1762194229004,3.88947933,169.35,169.33,20.86969821]
[1762194229202,3.88947933,169.34,169.33,20.86969821]
[1762194230004,4.91329558,169.38,169.33,50.39783852]
[1762194230304,5.61329558,169.39,169.33,50.39783852]
[1762194230905,4.91329558,169.39,169.34,9.78882769]
[1762194231107,4.91329558,169.39,169.34,9.98882769]
[1762194231299,4.91329558,169.39,169.35,0.2]
[1762194231612,0.7,169.39,169.34,30.58082769]
[1762194231813,4.91329558,169.4,169.35,0.2]
[1762194232220,17.05329558,169.41,169.35,0.2]
[1762194232394,4.91329558,169.41,169.35,50.2]
[1762194232717,4.91329558,169.42,169.36,50.1889466]
[1762194232893,4.91329558,169.42,169.37,20.592]
[1762194233090,17.75329558,169.43,169.37,20.792]
[1762194233616,17.05329558,169.43,169.37,20.592]
[1762194233905,5.61329558,169.42,169.37,20.592]
[1762194234101,0.7,169.42,169.37,20.592]
[1762194234416,0.7,169.42,169.37,20.792]
[1762194234624,0.7,169.42,169.37,20.592]
[1762194234794,0.7,169.42,169.38,20.66359664]
[1762194235114,5.61329558,169.42,169.38,20.66359664]
[1762194235517,0.7,169.41,169.38,20.66359664]
[1762194236316,0.7,169.41,169.4,20.592]
[1762194236890,12.84,169.43,169.41,5.90283926]
[1762194237121,4.91329558,169.47,169.41,20.65993742]
[1762194237305,5.61329558,169.47,169.44,20.592]
[1762194237491,0.7,169.46,169.44,20.592]
[1762194237918,0.7,169.46,169.41,20.65993742]
[1762194238100,12.14,169.45,169.41,26.49483926]
[1762194238608,0.7,169.44,169.43,20.592]
[1762194239193,0.7,169.44,169.43,5.90214247]
[1762194239901,0.7,169.44,169.39,26.49552929]
[1762194240099,4.83753301,169.43,169.35,5.90493061]
[1762194240304,5.61329558,169.44,169.35,5.90493061]
[1762194240305,12.37603985,169.42,169.35,5.90493061]
[1762194240504,12.14,169.41,169.38,20.592]
[1762194240719,12.84,169.41,169.38,20.592]
[1762194241017,12.84,169.4,169.38,20.592]
[1762194241222,12.84,169.4,169.39,5.90353621]
[1762194242119,16.75349637,169.4,169.38,20.592]
[1762194242327,4.61349637,169.39,169.38,20.592]
[1762194242707,7.51603873,169.39,169.34,5.90500594]
[1762194243014,4.61349637,169.38,169.34,5.90500594]
[1762194243228,3.91349637,169.37,169.32,20.67012773]
[1762194243402,3.91349637,169.36,169.32,20.67012773]
[1762194243600,0.7,169.37,169.32,21.34012773]
[1762194243818,3.91856002,169.36,169.32,21.34012773]
[1762194244022,0.7,169.37,169.32,21.34012773]
[1762194244224,3.91852221,169.36,169.32,21.34012773]
[1762194244438,12.84,169.36,169.32,21.34012773]
[1762194245629,12.84,169.36,169.32,20.67012773]
[1762194246827,12.84,169.36,169.32,21.34012773]
[1762194247126,12.14,169.38,169.33,0.67]
[1762194247329,3.9206169,169.37,169.33,0.67]
[1762194247537,12.84,169.38,169.33,0.67]
[1762194247728,3.92040676,169.37,169.34,20.6684776]
[1762194247930,12.14,169.38,169.34,20.6684776]
[1762194248130,4.6209399,169.37,169.34,20.6684776]
[1762194248312,12.84,169.38,169.34,20.6684776]
[1762194248511,3.92046121,169.37,169.34,20.6684776]
[1762194248837,3.92039811,169.36,169.34,20.6684776]
[1762194249013,0.7,169.38,169.34,20.6684776]
[1762194249211,3.92053097,169.37,169.34,20.6684776]
[1762194249412,3.92053097,169.36,169.34,20.6684776]
[1762194249724,12.84,169.38,169.34,20.6684776]
[1762194249907,3.92063949,169.37,169.34,20.1684776]
[1762194250110,12.84,169.38,169.34,20.1684776]
[1762194250310,3.92185206,169.37,169.34,20.1684776]
[1762194250530,12.84,169.38,169.32,20.67091896]
[1762194250734,3.92129649,169.37,169.34,0.67]
[1762194250932,12.14,169.38,169.32,50.2008032]
[1762194251137,12.14,169.4,169.35,20.592]
[1762194251434,3.92251442,169.39,169.35,20.592]
[1762194251636,12.84,169.4,169.35,21.262]
[1762194251938,3.92188415,169.39,169.35,21.262]
[1762194252232,12.14,169.4,169.35,21.262]
[1762194252434,12.08729915,169.39,169.32,20.67091896]
[1762194252625,11.38729915,169.38,169.32,20.67091896]
[1762194252825,4.62227814,169.37,169.32,20.67091896]
[1762194253026,16.06227814,169.36,169.32,20.67091896]
[1762194253220,12.14,169.36,169.32,21.34091896]
[1762194253628,3.92290308,169.35,169.32,21.34091896]
[1762194253827,0.7,169.35,169.32,5.90597684]
[1762194254027,4.62240992,169.34,169.31,6.00626093]
[1762194254231,3.92240992,169.33,169.31,6.00626093]
[1762194254444,16.06240992,169.32,169.31,0.1]
[1762194254617,16.76240992,169.32,169.31,0.1]
[1762194255138,7.46502101,169.34,169.31,6.00632567]
[1762194255139,12.14,169.34,169.31,6.00632567]
[1762194255313,4.61860036,169.33,169.31,6.00632567]
[1762194255513,0.7,169.33,169.31,6.00632567]
[1762194255916,0.7,169.37,169.32,0.67]
[1762194256145,12.14,169.39,169.32,21.262]
[1762194256345,3.9204608,169.38,169.33,0.67]
[1762194256516,3.9204608,169.37,169.34,20.592]
[1762194256721,0.7,169.43,169.35,21.262]
[1762194257036,3.92030098,169.42,169.35,21.262]
[1762194257245,16.06030098,169.41,169.35,21.262]
[1762194257456,12.14,169.41,169.35,21.262]
[1762194257743,0.7,169.46,169.36,0.67]
[1762194257920,12.14,169.43,169.37,41.25681666]
[1762194258320,12.84,169.43,169.37,41.92681666]
[1762194258636,4.62326796,169.42,169.37,41.25681666]
[1762194258835,7.46502101,169.4,169.35,5.90493061]
[1762194259043,24.22837402,169.39,169.35,5.90493061]
[1762194259214,3.92335301,169.38,169.35,5.90493061]
[1762194259414,0.7,169.38,169.35,5.90493061]
[1762194260032,12.14,169.39,169.36,0.67]
[1762194260243,12.14,169.39,169.36,21.262]
[1762194260648,12.84,169.4,169.36,21.262]
[1762194260851,12.14,169.4,169.37,0.67]
[1762194261147,12.14,169.4,169.36,21.262]
[1762194262249,12.14,169.4,169.37,20.66481666]
[1762194262835,4.6192074,169.39,169.37,5.90423333]
[1762194263014,3.91916782,169.38,169.37,5.90423333]
[1762194263218,0.7,169.39,169.36,5.9045299]
[1762194263532,3.91903963,169.38,169.36,5.9045299]
[1762194263732,0.7,169.39,169.36,5.9045299]
[1762194263945,3.91879391,169.38,169.36,5.9045299]
[1762194264126,0.7,169.39,169.35,14.76222527]
[1762194264326,3.91916359,169.38,169.35,14.76222527]
[1762194264652,3.91884596,169.37,169.34,5.90527931]
[1762194264829,0.7,169.38,169.34,5.90527931]
[1762194265142,3.91873137,169.37,169.34,5.90527931]
[1762194265326,10.48882769,169.39,169.34,5.90527931]
[1762194265526,4.61872949,169.38,169.34,5.90527931]
[1762194265723,3.91872949,169.37,169.33,41.26151601]
[1762194265936,0.7,169.38,169.33,41.93151601]
[1762194266129,3.91930829,169.37,169.33,41.93151601]
[1762194266342,0.7,169.38,169.33,41.93151601]
[1762194266844,3.91920817,169.37,169.33,41.26151601]
[1762194267021,0.7,169.38,169.33,41.26151601]
[1762194267219,3.92068424,169.37,169.33,41.26151601]
[1762194267428,0.7,169.38,169.33,41.26151601]
[1762194267639,3.92056259,169.37,169.33,41.26151601]
[1762194267942,0.7,169.38,169.33,41.97151601]
[1762194268139,3.92128479,169.37,169.33,41.26151601]
[1762194268331,8.16502101,169.38,169.33,5.90562806]
[1762194268541,4.64107173,169.37,169.33,5.90562806]
[1762194268724,16.06107173,169.36,169.33,5.90562806]
[1762194268918,4.64107173,169.35,169.33,5.90562806]
[1762194269222,0.72,169.35,169.33,5.90562806]
[1762194270042,0.72,169.35,169.32,5.90597684]
[1762194271330,12.86,169.36,169.32,20.67091896]
[1762194271630,4.64108601,169.35,169.32,20.67091896]
[1762194271839,0.72,169.35,169.32,20.67091896]
[1762194272433,3.92071325,169.34,169.32,5.90597684]
[1762194272633,0.72,169.35,169.32,5.90597684]
[1762194272927,3.92109398,169.34,169.32,5.90597684]
[1762194273237,0.72,169.35,169.32,5.90597684]
[1762194273439,3.92220862,169.34,169.32,5.90597684]
[1762194273640,0.66,169.34,169.32,5.90597684]
[1762194274539,12.14,169.36,169.33,0.71]
[1762194274841,12.8,169.36,169.32,20.67091896]
[1762194275048,0.66,169.35,169.32,20.67091896]
[1762194276452,12.14,169.36,169.32,20.67091896]
[1762194276632,4.58123149,169.35,169.32,20.67091896]
[1762194276950,0.66,169.35,169.32,20.67091896]
[1762194278642,0.66,169.35,169.32,5.90597684]
[1762194278833,3.92184816,169.34,169.32,5.90597684]
[1762194279036,0.66,169.35,169.32,5.90597684]
[1762194279232,3.92159975,169.34,169.32,5.90597684]
[1762194279426,0.66,169.35,169.32,5.90597684]
[1762194279638,3.92205489,169.34,169.32,5.90597684]
[1762194279839,0.66,169.35,169.32,5.90597684]
[1762194280041,3.92163619,169.34,169.32,5.90597684]
[1762194280243,0.66,169.35,169.32,5.90597684]
[1762194280429,3.92130659,169.34,169.32,5.90597684]
[1762194280631,0.66,169.35,169.32,5.90597684]
[1762194280840,3.9212008,169.34,169.32,5.90597684]
[1762194281138,12.14,169.36,169.32,21.38091896]
[1762194281341,3.92156839,169.35,169.33,0.71]
[1762194281651,0.66,169.42,169.35,20.592]
[1762194281864,12.8,169.41,169.35,20.592]
[1762194282155,9.78882769,169.38,169.32,20.67091896]
[1762194282354,12.14,169.37,169.32,20.67091896]
[1762194282656,12.8,169.37,169.32,20.67091896]
[1762194282864,0.66,169.36,169.32,20.67091896]
[1762194283161,0.66,169.36,169.32,21.38091896]
[1762194284162,0.66,169.36,169.32,20.67091896]
[1762194288872,0.66,169.36,169.32,5.90597684]
[1762194290545,0.66,169.36,169.32,20.67091896]
[1762194293459,12.14,169.35,169.32,20.67091896]
[1762194293769,3.92953967,169.34,169.32,20.67091896]
[1762194293957,12.8,169.35,169.32,20.67091896]
[1762194294271,3.92950458,169.34,169.32,20.67091896]
[1762194294473,12.8,169.35,169.32,20.67091896]
[1762194294652,3.92951234,169.34,169.32,20.67091896]
[1762194294969,12.8,169.35,169.32,20.67091896]
[1762194295149,3.92951234,169.34,169.32,20.67091896]
[1762194295350,12.8,169.35,169.32,20.67091896]
[1762194296052,3.92938986,169.34,169.32,20.67091896]
[1762194296252,12.8,169.35,169.32,20.67091896]
[1762194296472,3.92995285,169.34,169.32,20.67091896]
[1762194296652,12.8,169.35,169.32,20.67091896]
[1762194296853,3.92995202,169.34,169.32,20.67091896]
[1762194297180,12.14,169.35,169.32,21.38091896]
[1762194297380,3.93030365,169.34,169.32,21.38091896]
[1762194297684,12.8,169.35,169.32,20.67091896]
[1762194297856,3.93030449,169.34,169.32,20.67091896]
[1762194298057,12.8,169.35,169.32,20.67091896]
[1762194298258,3.9301374,169.34,169.32,20.67091896]
[1762194298578,12.8,169.35,169.32,20.67091896]
[1762194298782,3.93010336,169.34,169.32,20.67091896]
[1762194299079,12.8,169.35,169.32,20.67091896]
[1762194299246,3.9306817,169.34,169.32,21.38091896]
[1762194299454,5.57126626,169.39,169.33,0.71]
[1762194299749,16.07115493,169.38,169.35,20.592]
[1762194299950,3.93115493,169.37,169.33,0.71]
[1762194300155,3.93115493,169.36,169.33,0.71]
[1762194300375,0.66,169.37,169.33,0.71]
[1762194300552,3.93173394,169.36,169.33,0.71]
[1762194300752,0.66,169.37,169.32,41.26291896]
[1762194301050,4.59193689,169.36,169.32,41.26291896]
[1762194301253,3.93193689,169.35,169.32,41.97291896]
[1762194301471,3.93165633,169.34,169.32,41.97291896]
[1762194301672,0.66,169.36,169.32,41.97291896]
[1762194301863,3.93148782,169.35,169.32,41.97291896]
[1762194302172,12.14,169.37,169.33,0.71]
[1762194302367,3.93228213,169.36,169.33,0.71]
[1762194302577,3.93228213,169.35,169.31,6.00610155]
[1762194302776,3.93228213,169.34,169.31,0.1]
[1762194303081,16.07228213,169.33,169.31,0.1]
[1762194303253,3.93228213,169.32,169.31,6.00632567]
[1762194303454,4.61228213,169.32,169.31,0.1]
[1762194309278,3.93228213,169.32,169.31,6.67632567]
[1762194309580,3.93228213,169.32,169.31,27.26832567]
[1762194309871,12.14,169.38,169.31,42.03413985]
[1762194310075,12.82,169.38,169.32,0.67]
[1762194310411,12.14,169.38,169.32,0.67]
[1762194310679,12.82,169.38,169.32,0.67]
[1762194310880,12.82,169.38,169.33,20.66969821]
[1762194311268,0.68,169.37,169.33,20.66969821]
[1762194311468,4.91126626,169.41,169.34,21.262]
[1762194311776,12.14,169.43,169.36,20.592]
[1762194312158,12.14,169.43,169.38,20.592]
[1762194312360,0.68,169.42,169.34,12.81]
[1762194312562,2.53742218,169.42,169.34,12.81]
[1762194312773,2.53742218,169.42,169.35,0.67]
[1762194312962,0.68,169.41,169.36,20.66603683]
[1762194313163,0.68,169.41,169.36,5.90458195]
[1762194313364,8.44027097,169.41,169.36,5.90458195]
[1762194313661,2.53742218,169.41,169.36,5.90458195]
[1762194313870,0.68,169.4,169.36,5.90458195]
[1762194314068,12.14,169.39,169.36,20.66603683]
[1762194314672,12.14,169.43,169.38,20.592]
[1762194314876,12.14,169.43,169.39,0.67]
[1762194315061,4.91946998,169.49,169.41,20.592]
[1762194315261,10.4,169.48,169.41,20.592]
[1762194315467,10.4,169.49,169.42,0.67]
[1762194315764,11.08,169.49,169.42,0.67]
[1762194315969,0.68,169.48,169.42,0.67]
[1762194316786,0.68,169.48,169.41,32.732]
[1762194316984,0.68,169.48,169.41,20.592]
[1762194317187,0.68,169.48,169.42,5.90249085]
[1762194317769,10.4,169.49,169.43,0.67]
[1762194318168,11.08,169.49,169.43,0.67]
[1762194318392,10.4,169.49,169.43,0.67]
[1762194319285,10.4,169.49,169.44,20.6562795]
[1762194319668,0.68,169.48,169.44,5.90179414]
[1762194321399,0.68,169.48,169.43,5.90214247]
[1762194321780,3.92029977,169.47,169.43,6.57214247]
[1762194321970,0.68,169.47,169.43,6.57214247]
[1762194322975,11.08,169.49,169.44,0.67]
[1762194323176,3.91923971,169.48,169.45,5.90144585]
[1762194323393,0.68,169.48,169.45,5.90144585]
[1762194324096,9.93098926,169.47,169.42,5.90249085]
[1762194324279,0.68,169.46,169.42,5.90249085]
[1762194324597,12.12,169.45,169.42,5.90249085]
[1762194325096,12.8,169.45,169.42,5.90249085]
[1762194325599,0.68,169.44,169.4,5.90293329]
[1762194326096,12.12,169.45,169.41,0.67]
[1762194326299,12.12,169.46,169.41,0.67]
[1762194326595,12.8,169.46,169.41,0.67]
[1762194327275,12.8,169.46,169.42,20.65871797]
[1762194327480,0.71,169.45,169.42,20.65871797]
[1762194328195,2.56742218,169.45,169.41,5.90275402]
[1762194328400,6.48443336,169.45,169.38,0.7]
[1762194328697,18.02120063,169.46,169.38,0.7]
[1762194328698,6.48443336,169.44,169.38,5.90388475]
[1762194328996,1.85742218,169.42,169.38,5.90388475]
[1762194329176,17.89340603,169.42,169.38,5.90388475]
[1762194329380,12.83,169.42,169.37,20.66451328]
[1762194329580,12.12,169.42,169.38,0.7]
[1762194330476,12.12,169.42,169.37,20.66451328]
[1762194330679,14.62363226,169.4,169.31,0.1]
[1762194330894,14.62363226,169.38,169.32,5.90597684]
[1762194331092,20.87019132,169.37,169.32,5.90597684]
[1762194331294,3.91538675,169.36,169.32,5.90597684]
[1762194331496,4.62538675,169.36,169.31,6.00629908]
[1762194331699,5.54480457,169.35,169.31,0.1]
[1762194331905,9.45933768,169.35,169.31,0.1]
[1762194332088,4.62453311,169.34,169.31,0.1]
[1762194332292,12.12,169.33,169.31,6.00631526]
[1762194333311,0.65,169.32,169.31,0.1]
[1762194334501,12.12,169.33,169.31,0.1]
[1762194334794,0.65,169.32,169.31,0.1]
[1762194335690,12.12,169.33,169.31,6.00631452]
[1762194336101,0.65,169.38,169.32,0.68]
[1762194336292,4.55527833,169.38,169.32,0.68]
[1762194336606,12.77,169.37,169.31,20.7721287]
[1762194336991,0.65,169.36,169.31,20.7721287]
[1762194337188,0.65,169.36,169.31,6.00631452]